fUST/lending_fUST_20241005
["ID","MTS","AMOUNT","RATE_DAILY","PERIOD"]
[339854064,1728070249127,-151.0,0.00019962,2]
[339854065,1728070249139,-151.0,0.00019962,2]
[339854066,1728070249149,-151.0,0.00019962,2]
[339854067,1728070249159,-151.0,0.00019962,2]
[339854068,1728070249170,-782.380276,0.00019962,2]
[339854069,1728070249180,-782.380276,0.00019962,2]
[339854070,1728070249190,-782.380276,0.00019962,2]
[339854071,1728070249200,-782.380276,0.00019962,2]
[339854072,1728070249210,-782.380276,0.00019962,2]
[339854073,1728070249221,-782.380276,0.00019962,2]
[339854074,1728070249232,-151.0,0.00019962,2]
[339854075,1728070249242,-151.0,0.00019962,2]
[339854076,1728070249252,-151.0,0.00019962,2]
[339854077,1728070249263,-151.0,0.00019962,2]
[339854078,1728070249272,-206.662277,0.00019962,2]
[339854079,1728070249282,-151.0,0.00019962,2]
[339854080,1728070249292,-151.0,0.00019962,2]
[339854081,1728070249301,-151.0,0.00019962,2]
[339854082,1728070249312,-151.0,0.00019962,2]
[339854083,1728070249322,-151.0,0.00019962,2]
[339854084,1728070249335,-151.0,0.00019962,2]
[339854085,1728070249347,-151.0,0.00019962,2]
[339854086,1728070249357,-151.0,0.00019962,2]
[339854087,1728070249366,-284.680838,0.00019962,2]
[339854088,1728070249376,-151.0,0.00019962,2]
[339854089,1728070249386,-151.0,0.00019962,2]
[339854090,1728070249396,-239.766857,0.00019962,2]
[339854091,1728070249407,-411.211248,0.00019962,2]
[339854092,1728070249418,-411.211248,0.00019962,2]
[339854093,1728070249430,-411.211248,0.00019962,2]
[339854094,1728070249441,-411.211248,0.00019962,2]
[339854095,1728070249452,-257.915436,0.00019962,2]
[339854096,1728070249462,-257.915436,0.00019962,2]
[339854097,1728070249472,-257.915436,0.00019962,2]
[339854098,1728070249482,-257.915436,0.00019962,2]
[339854099,1728070249492,-411.211248,0.00019962,2]
[339854100,1728070249502,-411.211248,0.00019962,2]
[339854101,1728070249513,-411.211248,0.00019962,2]
[339854102,1728070249523,-257.915436,0.00019962,2]
[339854103,1728070249535,-411.211248,0.00019962,2]
[339854104,1728070249547,-257.915436,0.00019962,2]
[339854105,1728070249557,-257.915436,0.00019962,2]
[339854106,1728070249567,-257.915428,0.00019962,2]
[339854107,1728070249577,-425.389714,0.00019962,2]
[339854108,1728070249586,-425.389714,0.00019962,2]
[339854109,1728070249596,-425.389714,0.00019962,2]
[339854110,1728070249606,-425.389714,0.00019962,2]
[339854111,1728070249616,-425.389714,0.00019962,2]
[339854112,1728070249626,-425.389714,0.00019962,2]
[339854113,1728070249636,-425.389714,0.00019962,2]
[339854114,1728070249646,-425.389714,0.00019962,2]
[339854115,1728070249656,-1994.71295,0.00019962,2]
[339854116,1728070249666,-1994.71295,0.00019962,2]
[339854117,1728070249676,-199.6656206,0.00019962,2]
[339854118,1728070250845,-151.0,0.00017802,2]
[339854119,1728070250856,-151.0,0.00018293,2]
[339854120,1728070250865,-151.0,0.0001889,2]
[339854121,1728070250874,-1795.0473294,0.00019962,2]
[339854122,1728070250883,-1994.71295,0.00019962,2]
[339854123,1728070250892,-406.307374,0.00019962,2]
[339854124,1728070250902,-406.307374,0.00019962,2]
[339854125,1728070250911,-406.307374,0.00019962,2]
[339854126,1728070250920,-1994.71295,0.00019962,2]
[339854127,1728070250931,-1994.71295,0.00019962,2]
[339854128,1728070250942,-1994.71295,0.00019962,2]
[339854129,1728070250952,-406.307374,0.00019962,2]
[339854130,1728070250962,-1994.712956,0.00019962,2]
[339854131,1728070250971,-406.307374,0.00019962,2]
[339854132,1728070250981,-406.307382,0.00019962,2]
[339854133,1728070250990,-151.0,0.00019962,2]
[339854134,1728070251000,-214.447675,0.00019962,2]
[339854135,1728070251011,-214.447671,0.00019962,2]
[339854136,1728070251020,-355.207412,0.00019962,2]
[339854137,1728070251030,-355.20742,0.00019962,2]
[339854138,1728070251039,-455.727021,0.00019962,2]
[339854139,1728070251051,-455.727021,0.00019962,2]
[339854140,1728070251062,-151.0,0.00019962,2]
[339854141,1728070251071,-592.019826,0.00019962,2]
[339854142,1728070251081,-592.019822,0.00019962,2]
[339854143,1728070251092,-151.0,0.00019963,2]
[339854144,1728070251103,-151.0,0.00019963,2]
[339854145,1728070251114,-151.0,0.00019963,2]
[339854146,1728070251125,-151.0,0.00019963,2]
[339854147,1728070251136,-151.0,0.00019963,2]
[339854148,1728070251146,-151.0,0.00019963,2]
[339854149,1728070251156,-151.0,0.00019963,2]
[339854150,1728070251167,-151.0,0.00019963,2]
[339854151,1728070251178,-151.0,0.00019963,2]
[339854152,1728070251187,-151.0,0.00019963,2]
[339854153,1728070251199,-151.0,0.00019963,2]
[339854154,1728070251209,-207.760296,0.00019963,2]
[339854155,1728070251219,-207.760296,0.00019963,2]
[339854156,1728070251229,-151.0,0.00019963,2]
[339854157,1728070251240,-151.0,0.00019963,2]
[339854158,1728070251250,-151.0,0.00019963,2]
[339854159,1728070251260,-151.0,0.00019963,2]
[339854160,1728070251270,-151.0,0.00019963,2]
[339854161,1728070251279,-151.0,0.00019963,2]
[339854162,1728070251290,-232.99817,0.00019963,2]
[339854163,1728070251299,-782.380276,0.00019963,2]
[339854164,1728070251310,-782.380276,0.00019963,2]
[339854165,1728070251319,-782.380276,0.00019963,2]
[339854166,1728070251330,-782.380276,0.00019963,2]
[339854167,1728070251339,-151.0,0.00019963,2]
[339854168,1728070251348,-151.0,0.00019963,2]
[339854169,1728070251358,-411.211248,0.00019963,2]
[339854170,1728070251368,-411.211248,0.00019963,2]
[339854171,1728070251378,-411.211248,0.00019963,2]
[339854172,1728070251387,-411.211248,0.00019963,2]
[339854173,1728070251397,-151.0,0.0001997,2]
[339854174,1728070251407,-151.0,0.0001997,2]
[339854175,1728070251416,-151.0,0.0001997,2]
[339854176,1728070251425,-271.024629,0.0001997,2]
[339854177,1728070251435,-151.0,0.0001997,2]
[339854178,1728070251445,-151.0,0.0001997,2]
[339854179,1728070251454,-151.0,0.0001997,2]
[339854180,1728070251463,-151.0,0.0001997,2]
[339854181,1728070251472,-207.760296,0.0001997,2]
[339854182,1728070251482,-207.760296,0.0001997,2]
[339854183,1728070251492,-207.760296,0.0001997,2]
[339854184,1728070251502,-207.760296,0.0001997,2]
[339854185,1728070251511,-151.0,0.0001997,2]
[339854186,1728070251520,-151.0,0.0001997,2]
[339854187,1728070251529,-151.0,0.0001997,2]
[339854188,1728070251538,-782.380276,0.0001997,2]
[339854189,1728070251549,-782.380276,0.0001997,2]
[339854190,1728070251559,-175.677835,0.0001997,2]
[339854191,1728070251568,-411.211248,0.0001997,2]
[339854192,1728070251578,-411.211248,0.0001997,2]
[339854193,1728070251587,-151.0,0.00019971,2]
[339854194,1728070251598,-151.0,0.00019971,2]
[339854195,1728070251610,-151.0,0.00019971,2]
[339854196,1728070251620,-151.0,0.00019971,2]
[339854197,1728070251630,-151.0,0.00019971,2]
[339854198,1728070251642,-151.0,0.00019971,2]
[339854199,1728070251652,-151.0,0.00019971,2]
[339854200,1728070251662,-151.0,0.00019971,2]
[339854201,1728070251671,-151.0,0.00019971,2]
[339854202,1728070251682,-151.0,0.00019971,2]
[339854203,1728070251693,-151.0,0.00019971,2]
[339854204,1728070251704,-167.22213,0.00019971,2]
[339854205,1728070251713,-151.0,0.00019971,2]
[339854206,1728070251723,-151.0,0.00019971,2]
[339854207,1728070251732,-151.0,0.00019971,2]
[339854208,1728070251742,-151.0,0.00019971,2]
[339854209,1728070251751,-286.95498,0.00019971,2]
[339854210,1728070251760,-207.760296,0.00019971,2]
[339854211,1728070251770,-207.760296,0.00019971,2]
[339854212,1728070251780,-207.760296,0.00019971,2]
[339854213,1728070251789,-207.760296,0.00019971,2]
[339854214,1728070251800,-207.760296,0.00019971,2]
[339854215,1728070251809,-207.760296,0.00019971,2]
[339854216,1728070251818,-236.297679,0.00019971,2]
[339854217,1728070251829,-500.0,0.00019971,2]
[339854218,1728070251839,-151.0,0.00019971,2]
[339854219,1728070251850,-151.0,0.00019971,2]
[339854220,1728070251859,-151.0,0.00019971,2]
[339854221,1728070251870,-188.999978,0.00019971,2]
[339854222,1728070251880,-782.380276,0.00019971,2]
[339854223,1728070251890,-782.380276,0.00019971,2]
[339854224,1728070251900,-782.380276,0.00019971,2]
[339854225,1728070251911,-782.380276,0.00019971,2]
[339854226,1728070251921,-782.380276,0.00019971,2]
[339854227,1728070251931,-782.380276,0.00019971,2]
[339854228,1728070251940,-411.211248,0.00019971,2]
[339854229,1728070251951,-411.211248,0.00019971,2]
[339854230,1728070251960,-411.211248,0.00019971,2]
[339854231,1728070251969,-411.211248,0.00019971,2]
[339854232,1728070251979,-411.211248,0.00019971,2]
[339854233,1728070251988,-411.211241,0.00019971,2]
[339854234,1728070251999,-500.0,0.00019971,2]
[339854235,1728070252010,-151.0,0.00019972,2]
[339854236,1728070252020,-151.0,0.00019972,2]
[339854237,1728070252031,-151.0,0.00019972,2]
[339854238,1728070252042,-151.0,0.00019972,2]
[339854239,1728070252052,-151.0,0.00019972,2]
[339854240,1728070252062,-233.786184,0.00019972,2]
[339854241,1728070252071,-151.0,0.00019972,2]
[339854242,1728070252081,-151.0,0.00019972,2]
[339854243,1728070252092,-207.760296,0.00019972,2]
[339854244,1728070252104,-207.760296,0.00019972,2]
[339854245,1728070252115,-207.760296,0.00019972,2]
[339854246,1728070252125,-207.760299,0.00019972,2]
[339854247,1728070252134,-151.0,0.00019972,2]
[339854248,1728070252144,-782.380276,0.00019972,2]
[339854249,1728070252154,-782.38028,0.00019972,2]
[339854250,1728070252165,-500.0,0.00019973,2]
[339854251,1728070252175,-500.0,0.00019973,2]
[339854252,1728070252184,-503.0,0.00019973,2]
[339854253,1728070252194,-500.0,0.00019973,2]
[339854254,1728070252204,-501.57733193,0.00019973,2]
[339854255,1728070252213,-500.0,0.00019973,2]
[339854256,1728070252223,-500.04668334,0.00019973,2]
[339854257,1728070252233,-500.0,0.00019973,2]
[339854258,1728070252242,-500.0,0.00019973,2]
[339854259,1728070252252,-500.0,0.00019973,2]
[339854260,1728070252262,-500.0,0.00019973,2]
[339854261,1728070252271,-151.7866818,0.00019973,2]
[339854262,1728070252280,-500.0,0.00019973,2]
[339854263,1728070252290,-500.0,0.00019973,2]
[339854264,1728070252299,-500.11065233,0.00019973,2]
[339854265,1728070252309,-500.0,0.00019973,2]
[339854266,1728070252318,-500.0,0.00019973,2]
[339854267,1728070252328,-500.0,0.00019973,2]
[339854268,1728070252339,-500.0,0.00019973,2]
[339854269,1728070252350,-500.0,0.00019973,2]
[339854270,1728070252359,-151.0,0.00019973,2]
[339854271,1728070252369,-240.490169,0.00019973,2]
[339854272,1728070252378,-9631.04991031,0.0001998,3]
[339854273,1728070252388,-28893.1497309,0.0001999,3]
[339854274,1728070252399,-1000.0,0.00019998,2]
[339854275,1728070252409,-128575.39464758,0.0002,2]
[339854276,1728070252418,-1000.0,0.0002,20]
[339854277,1728070252427,-500.0,0.0002,2]
[339854278,1728070252436,-501.0,0.0002,2]
[339854279,1728070252447,-185.0,0.0002,2]
[339854280,1728070252456,-1000.0,0.0002,22]
[339854281,1728070252465,-151.21272606,0.0002,2]
[339854282,1728070252475,-11462.93979212,0.0002,2]
[339854283,1728070252485,-9844.33587088,0.0002,2]
[339854284,1728070433045,283.0,0.000199,120]
[339854346,1728071432323,-166.666666,0.00017737,2]
[339854347,1728071432333,-191.75240557,0.00017985,3]
[339854348,1728071432345,-760.651456,0.00018085,2]
[339854349,1728071432355,-300.0,0.00018282,2]
[339854350,1728071432366,-300.0,0.00018282,2]
[339854351,1728071432376,-24900.0,0.00018283,2]
[339854352,1728071432387,-1000.0,0.00018904,14]
[339854353,1728071432397,-164.643415,0.00018904,2]
[339854354,1728071432407,-500.0,0.00019178,2]
[339854355,1728071432421,-752.88615291,0.00019178,16]
[339854356,1728071432433,-306.988757,0.00019178,2]
[339854357,1728071432443,-176.215383,0.00019178,2]
[339854358,1728071432454,-152.86828932,0.00019179,2]
[339854359,1728071432464,-500.0,0.00019285,2]
[339854360,1728071432474,-486.09833836,0.00019315,2]
[339854361,1728071432484,-689.5109859,0.00019315,2]
[339854362,1728071432494,-6220.8985416,0.00019791,2]
[339854363,1728071432505,-188.80408818,0.000199,2]
[339854364,1728071432516,-420.0,0.00019942,2]
[339854365,1728071432527,-265.58085911,0.0002,2]
[339854366,1728071432537,-10065.55449013,0.0002,2]
[339854367,1728071432546,-1956.27527316,0.0002,2]
[339854368,1728071432556,-4315.34731839,0.0002,2]
[339854369,1728071432566,-348.81246672,0.0002,2]
[339854370,1728071432576,-157.2658137,0.0002,2]
[339854371,1728071432588,-1747.49615766,0.0002,30]
[339854372,1728071432599,-518.0,0.0002,2]
[339854373,1728071432610,-151.22781866,0.0002,2]
[339854374,1728071432622,-150.471453,0.0002,2]
[339854375,1728071432635,-1453.0,0.0002,2]
[339854376,1728071432645,-680.0,0.0002,2]
[339854377,1728071432656,-300.0,0.00020111,2]
[339854378,1728071432666,-8967.04121496,0.00020163,3]
[339854379,1728071432677,-191.49,0.00020163,3]
[339854380,1728071432688,-574.5,0.00020163,3]
[339854381,1728071432698,-275.0,0.0002017,120]
[339854382,1728071432709,-35278.71478628,0.00020173,2]
[339854383,1728071432804,-160.0,0.00020189,3]
[339854384,1728071432816,-160.0,0.00020189,5]
[339854385,1728071432826,-1000.0,0.00020198,2]
[339854386,1728071432846,-150.112233,0.000202,5]
[339854387,1728071432855,-307.8658611,0.00020219,2]
[339854388,1728071432865,-390.29641636,0.00020366,2]
[339854389,1728071432874,-235.55813868,0.00020366,2]
[339854390,1728071432884,-500.0,0.00020366,2]
[339854391,1728071432896,-180.25750654,0.00020366,2]
[339854392,1728071432905,-275.07434976,0.00020366,2]
[339854393,1728071432915,-500.0,0.00020366,2]
[339854394,1728071432924,-176.11144841,0.00020366,2]
[339854395,1728071432933,-500.0,0.00020366,2]
[339854396,1728071432943,-500.0,0.00020366,2]
[339854397,1728071432953,-500.0,0.00020366,2]
[339854398,1728071432963,-26901.1236449,0.00020367,3]
[339854399,1728071432972,-500.0,0.00020373,2]
[339854400,1728071432982,-500.0,0.00020376,2]
[339854401,1728071432991,-500.0,0.00020376,2]
[339854402,1728071433000,-500.0,0.00020376,2]
[339854403,1728071433011,-126974.40147979,0.00020377,2]
[339854404,1728071433020,-151.0,0.00020377,2]
[339854405,1728071433030,-151.0,0.00020377,2]
[339854406,1728071433040,-151.0,0.00020377,2]
[339854407,1728071433050,-151.0,0.00020377,2]
[339854408,1728071433060,-151.0,0.00020377,2]
[339854409,1728071433069,-453.63817819,0.0002052,4]
[339854410,1728071433079,-453.63817819,0.0002052,4]
[339854411,1728071433088,-14661.61943036,0.0002061,2]
[339854412,1728071433097,-1030.56841598,0.00020631,2]
[339854413,1728071433107,-150.112233,0.000207,4]
[339854414,1728071433117,-453.63817819,0.0002071,4]
[339854415,1728071433126,-453.63817819,0.0002071,4]
[339854416,1728071433136,-1540.20783807,0.00020723,3]
[339854417,1728071433149,-4549.70965091,0.00020723,3]
[339854418,1728071433243,-454.26263096,0.00020723,3]
[339854419,1728071433256,-2422.86109502,0.00020723,3]
[339854420,1728071433265,-14297.29027031,0.0002079,2]
[339854421,1728071433276,-150.112233,0.000208,2]
[339854422,1728071433286,-188.80408818,0.0002089,2]
[339854423,1728071433299,-2000.0,0.000209,5]
[339854424,1728071433310,-150.112233,0.000209,2]
[339854425,1728071433320,-150.112233,0.000209,4]
[339854426,1728071433330,-630.51342183,0.000209,2]
[339854427,1728071433340,-500.0,0.00020973,2]
[339854428,1728071433350,-600.93012401,0.00020973,2]
[339854429,1728071433360,-151.0,0.00020973,2]
[339854430,1728071433370,-151.0,0.0002098,2]
[339854431,1728071433381,-151.0,0.0002098,2]
[339854432,1728071433391,-8967.04121496,0.0002098,3]
[339854433,1728071433402,-151.0,0.0002099,2]
[339854434,1728071433412,-151.0,0.0002099,2]
[339854435,1728071433421,-151.0,0.0002099,2]
[339854436,1728071433432,-151.0,0.0002099,2]
[339854437,1728071433441,-151.0,0.0002099,2]
[339854438,1728071433450,-710.423791,0.0002099,2]
[339854439,1728071433461,-710.423791,0.0002099,2]
[339854440,1728071433471,-195.59239,0.0002099,2]
[339854441,1728071433630,-151.0,0.0002099,2]
[339854442,1728071433642,-151.0,0.0002099,2]
[339854443,1728071433652,-14941.08593047,0.0002099,3]
[339854467,1728071438000,-603.51,0.0002099,3]
[339854471,1728071438056,-1514.01780701,0.0002099,3]
[339854487,1728071440210,-381.35102713,0.00019999,2]
[339854488,1728071440224,-500.0,0.00019999,2]
[339854489,1728071440234,-231.16134946,0.00019999,2]
[339854490,1728071440245,-500.0,0.00019999,2]
[339854491,1728071440256,-500.0,0.00019999,2]
[339854492,1728071440267,-500.0,0.00019999,2]
[339854493,1728071440277,-500.0,0.00019999,2]
[339854494,1728071440287,-500.0,0.00019999,2]
[339854495,1728071440298,-500.0,0.00019999,2]
[339854496,1728071440308,-500.0,0.00019999,2]
[339854497,1728071440319,-500.0,0.00019999,2]
[339854498,1728071440329,-500.0,0.00019999,2]
[339854499,1728071440339,-306.65510321,0.00019999,2]
[339854500,1728071440349,-500.0,0.00019999,2]
[339854501,1728071440359,-500.0,0.00019999,2]
[339854502,1728071440368,-500.0,0.00019999,2]
[339854503,1728071440552,-500.0,0.00019999,2]
[339854504,1728071440562,-500.0,0.00019999,2]
[339854505,1728071440572,-500.0,0.00019999,2]
[339854506,1728071440581,-500.0,0.00019999,2]
[339854507,1728071440591,-500.0,0.00019999,2]
[339854508,1728071440602,-500.0,0.00019999,2]
[339854509,1728071440611,-26669.73400641,0.0002099,3]
[339854510,1728071440646,-500.0,0.00019999,2]
[339854511,1728071440657,-500.0,0.00019999,2]
[339854512,1728071440666,-19040.94076081,0.0002099,3]
[339854513,1728071440676,-151.0,0.0002099,2]
[339854514,1728071440685,-352.0,0.00021,5]
[339854515,1728071440694,-259.87313344,0.00021,2]
[339854516,1728071440703,-234.19713583,0.00021,2]
[339854517,1728071440713,-7548.37633617,0.00021,2]
[339854549,1728071443150,-500.0,0.00019999,2]
[339854550,1728071443159,-500.0,0.00019999,2]
[339854553,1728071443171,-151.0,0.0002098,2]
[339854555,1728071443181,-151.0,0.0002099,2]
[339854557,1728071443192,-453.12150634,0.00021,2]
[339854559,1728071443206,-1210.29858918,0.00021,2]
[339854885,1728071446222,-988.8777378,0.00021,2]
[339854888,1728071446234,-319.0,0.00021,2]
[339854890,1728071446245,-786.17329215,0.00021,2]
[339854892,1728071446254,-200.04656219,0.00021,2]
[339854894,1728071446264,-59.25416016,0.00021,3]
[339855049,1728071489938,257.0,0.000199,120]
[339855052,1728072551764,247.0,0.000199,120]
[339855103,1728072632076,-164.643415,0.00018904,2]
[339855105,1728072632086,-291.639319,0.00019178,2]
[339855107,1728072632096,-380.325728,0.00019199,2]
[339855109,1728072632106,-171.24843,0.00019204,2]
[339855111,1728072632116,-152.86828932,0.00019416,2]
[339855112,1728072632126,-171.24843,0.00019454,2]
[339855113,1728072632137,-300.0,0.00019538,2]
[339855115,1728072632148,-300.0,0.00019538,2]
[339855117,1728072632158,-24900.0,0.00019539,2]
[339855119,1728072632168,-171.24843,0.00019704,2]
[339855122,1728072632178,-500.0,0.0001995,2]
[339855124,1728072632190,-171.24843,0.00019954,2]
[339855126,1728072632201,-171.24843,0.00020204,2]
[339855128,1728072632213,-173.0,0.00020547,2]
[339855130,1728072632225,-7194.09562255,0.00020561,2]
[339855133,1728072632244,-463.81475815,0.00020561,7]
[339855135,1728072632254,-209.00333161,0.00020705,4]
[339855137,1728072632264,-153.0,0.000209,2]
[339855139,1728072632274,-567.46207962,0.000209,2]
[339855141,1728072632284,-176.41029596,0.00020958,2]
[339855143,1728072632294,-234.0,0.0002097,120]
[339855145,1728072632304,-382.98,0.0002097,3]
[339855147,1728072632316,-500.0,0.00020973,2]
[339855149,1728072632326,-500.0,0.00020973,2]
[339855152,1728072632338,-500.0,0.00020973,2]
[339855154,1728072632349,-500.0,0.00020973,2]
[339855156,1728072632359,-549.80656059,0.00020973,2]
[339855158,1728072632370,-500.51863415,0.00020973,2]
[339855159,1728072632379,-500.0,0.00020973,2]
[339855161,1728072632390,-500.0,0.00020973,2]
[339855163,1728072632401,-500.0,0.00020973,2]
[339855165,1728072632412,-500.0,0.00020973,2]
[339855167,1728072632421,-497.0787472,0.00020973,2]
[339855169,1728072632431,-500.0,0.00020973,2]
[339855171,1728072632442,-500.0,0.00020973,2]
[339855173,1728072632452,-500.0,0.00020973,2]
[339855175,1728072632462,-500.0,0.00020973,2]
[339855177,1728072632471,-500.0,0.00020975,2]
[339855180,1728072632484,-500.0,0.00020975,2]
[339855182,1728072632494,-492.52675972,0.00020975,2]
[339855183,1728072632505,-17909.5190654,0.00020976,3]
[339855184,1728072632519,-71638.0762616,0.0002098,3]
[339855185,1728072632531,-380.70320663,0.00020985,2]
[339855186,1728072632543,-500.0,0.00020985,2]
[339855187,1728072632553,-500.0,0.00020985,2]
[339855188,1728072632565,-212.08882341,0.00020985,2]
[339855189,1728072632577,-500.0,0.00020985,2]
[339855190,1728072632590,-618.57573453,0.00020985,2]
[339855191,1728072632600,-500.0,0.00020985,2]
[339855192,1728072632610,-500.0,0.00020985,2]
[339855193,1728072632620,-992.85335627,0.00020986,3]
[339855194,1728072632634,-1923.50451871,0.00020986,3]
[339855195,1728072634599,-350.23752855,0.00020986,3]
[339855219,1728072638111,-936.87007281,0.00020986,3]
[339855249,1728072640303,-6254.4,0.00020986,3]
[339855255,1728072640358,-1960.1761839,0.00020986,3]
[339855529,1728072643183,-2998.9316277,0.00020986,3]
[339855541,1728072643289,-2492.54577746,0.00020986,3]
[339855543,1728072643300,-2585.85732254,0.00020986,3]
[339855788,1728072646226,-51142.69987366,0.00020986,3]
[339855790,1728072646237,-53728.5571962,0.0002099,3]
[339855792,1728072646246,-29708.25032884,0.00020996,2]
[339855794,1728072646256,-136757.431565,0.00020996,2]
[339855796,1728072646265,-151.0,0.00020996,2]
[339855798,1728072646274,-151.0,0.00020996,2]
[339855800,1728072646283,-151.0,0.00020996,2]
[339855802,1728072646292,-151.0,0.00020996,2]
[339855804,1728072646302,-151.0,0.00020996,2]
[339855806,1728072646314,-151.0,0.00020996,2]
[339855808,1728072646324,-151.0,0.00020996,2]
[339855810,1728072646335,-639.381412,0.00020996,2]
[339855812,1728072646345,-639.381412,0.00020996,2]
[339855814,1728072646355,-151.0,0.00020996,2]
[339855816,1728072646364,-151.0,0.00020996,2]
[339855818,1728072646375,-151.0,0.00020996,2]
[339855820,1728072646387,-228.351532,0.00020996,2]
[339855822,1728072646397,-151.0,0.00020996,2]
[339855825,1728072646408,-151.0,0.00020996,2]
[339855827,1728072646420,-151.0,0.00020996,2]
[339855829,1728072646430,-151.0,0.00020996,2]
[339855831,1728072646439,-239.50611507,0.00020999,2]
[339855833,1728072646450,-557.19225076,0.00020999,2]
[339858615,1728073603502,210.0,0.0001913,120]
[339858616,1728073612431,222.0,0.000199,120]
[339858621,1728073767116,-3205.07442149,0.00014,4]
[339858672,1728073834365,-1283.98769293,0.00014,4]
[339858673,1728073834619,-1365.66099366,0.00014,4]
[339858674,1728073834631,-720.9807375,0.000159,2]
[339858675,1728073834642,-795.666289,0.00015979,2]
[339858676,1728073834654,-234.4644655,0.00016278,2]
[339858677,1728073834663,-818.284008,0.00016392,2]
[339858678,1728073834675,-174.6078156,0.00016646,2]
[339858679,1728073834686,-795.666289,0.00016664,2]
[339858680,1728073834699,-300.0,0.00016872,2]
[339858681,1728073834711,-432.34269876,0.00016873,2]
[339858682,1728073834724,-24900.0,0.00016873,2]
[339858683,1728073834736,-795.666289,0.00017349,2]
[339858684,1728073834748,-944.54095824,0.000176,2]
[339858685,1728073834759,-510.71587164,0.00017801,2]
[339858686,1728073834770,-500.0,0.00017872,2]
[339858687,1728073834780,-596.14642584,0.00017872,2]
[339858688,1728073834789,-500.0,0.00017872,2]
[339858689,1728073834798,-500.0,0.00017872,2]
[339858690,1728073834808,-500.0,0.00017872,2]
[339858691,1728073834818,-500.0,0.00017872,2]
[339858692,1728073834828,-500.0,0.00017872,2]
[339858693,1728073834838,-500.0,0.00017872,2]
[339858694,1728073834848,-500.0,0.00017872,2]
[339858695,1728073834858,-500.0,0.00017872,2]
[339858696,1728073834868,-500.0,0.00017872,2]
[339858697,1728073834878,-500.0,0.00017872,2]
[339858698,1728073834889,-500.0,0.00017872,2]
[339858699,1728073834899,-500.0,0.00017872,2]
[339858700,1728073834911,-500.0,0.00017872,2]
[339858701,1728073834920,-500.0,0.00017872,2]
[339858702,1728073834930,-500.0,0.00017872,2]
[339858703,1728073834941,-500.0,0.00017872,2]
[339858704,1728073834951,-500.0,0.00017872,2]
[339858705,1728073834962,-500.0,0.00017872,2]
[339858706,1728073834976,-588.94331977,0.00017872,2]
[339858707,1728073834986,-500.0,0.00017872,2]
[339858708,1728073834997,-500.0,0.00017872,2]
[339858709,1728073835008,-500.0,0.00017872,2]
[339858710,1728073835020,-372.40693061,0.00017872,2]
[339858711,1728073835030,-259.89592888,0.00017872,2]
[339858712,1728073835040,-500.0,0.00017873,2]
[339858713,1728073835052,-500.0,0.00017873,2]
[339858714,1728073835062,-500.0,0.00017873,2]
[339858715,1728073835073,-500.0,0.00017873,2]
[339858716,1728073835083,-500.69619032,0.00017873,2]
[339858717,1728073835094,-257.39989761,0.00017873,2]
[339858718,1728073835105,-500.0,0.00017873,2]
[339858719,1728073835116,-500.0,0.00017873,2]
[339858720,1728073835127,-500.0,0.00017873,2]
[339858721,1728073835139,-500.0,0.00017873,2]